bitfinex/quotes_BTCUSD_20220201
["timestamp","ask_amount","ask_price","bid_price","bid_amount"]
[1643729112457,0.0014963,38528.0,38524.0,0.209075]
[1643729112657,0.0014963,38528.0,38523.0,0.7955]
[1643729112858,0.14635657,38527.0,38523.0,0.81402496]
[1643729113321,0.14635657,38527.0,38523.0,0.01852496]
[1643729113322,0.08999319,38526.0,38523.0,0.01852496]
[1643729113716,0.1478529,38527.0,38523.0,0.01852496]
[1643729113915,0.23895749,38524.0,38523.0,0.01852496]
[1643729114121,0.00149633,38527.0,38523.0,0.01852496]
[1643729114515,0.179834,38530.0,38523.0,0.01852496]
[1643729114814,0.064912,38529.0,38523.0,0.01852496]
[1643729115018,0.14137337,38525.0,38523.0,0.01852496]
[1643729115317,0.129834,38530.0,38524.0,0.209082]
[1643729115917,0.00149477,38529.0,38519.0,0.09647051]
[1643729116117,0.13255156,38527.0,38519.0,0.09647051]
[1643729116318,0.064918,38526.0,38520.0,0.2091]
[1643729116518,0.064918,38526.0,38520.0,0.43238512]
[1643729116719,0.064918,38526.0,38520.0,0.2091]
[1643729116918,0.064918,38526.0,38523.0,0.01916423]
[1643729117165,0.00149484,38525.0,38523.0,0.01916423]
[1643729117365,0.12366621,38525.0,38523.0,0.01916423]
[1643729117563,0.12366621,38525.0,38518.0,0.00131356]
[1643729117763,0.00149484,38525.0,38518.0,0.00131356]
[1643729117964,0.064918,38526.0,38519.0,0.209109]
[1643729118163,0.064918,38526.0,38520.0,0.26463475]
[1643729118364,0.00149486,38523.0,38518.0,0.24037642]
[1643729118563,0.00149486,38523.0,38519.0,0.209111]
[1643729118966,0.00149486,38523.0,38518.0,0.00131356]
[1643729119168,0.11841586,38523.0,38518.0,0.00131356]
[1643729119371,0.116921,38523.0,38512.0,0.5]
[1643729119567,0.00149488,38522.0,38518.0,0.00131356]
[1643729119769,0.00149488,38522.0,38519.0,0.209115]
[1643729120171,0.1515147,38521.0,38519.0,0.209115]
[1643729120806,0.1515147,38521.0,38518.0,0.00131356]
[1643729121002,0.00149489,38522.0,38519.0,0.209116]
[1643729121602,0.06641689,38522.0,38519.0,0.209116]
[1643729121803,0.06641689,38522.0,38519.0,0.209115]
[1643729121804,0.064922,38522.0,38519.0,0.209115]
[1643729122009,0.11842984,38520.0,38518.0,0.00131356]
[1643729122404,0.11842984,38520.0,38519.0,0.209115]
[1643729122604,0.00149488,38522.0,38519.0,0.209116]
[1643729122805,0.00149488,38522.0,38520.0,0.09162043]
[1643729123002,0.064915,38527.0,38521.0,0.209103]
[1643729123205,0.00149488,38522.0,38521.0,0.209103]
[1643729123606,0.00149488,38522.0,38521.0,0.50096099]
[1643729124003,0.00149488,38522.0,38521.0,0.209103]
[1643729124202,0.28579068,38527.0,38519.0,0.209113]
[1643729124406,0.00149486,38523.0,38518.0,0.00131356]
[1643729124660,0.00149486,38523.0,38519.0,0.209111]
[1643729125158,0.00149486,38523.0,38522.0,0.08721062]
[1643729125359,0.12186304,38528.0,38522.0,0.209095]
[1643729125659,0.12186304,38528.0,38521.0,0.44928337]
[1643729126059,0.12186304,38528.0,38521.0,0.209097]
[1643729126260,0.12186304,38528.0,38520.0,0.08130561]
[1643729126859,0.00149482,38526.0,38521.0,0.02129559]
[1643729127166,0.2454167,38526.0,38521.0,0.02129559]
[1643729127560,0.2354167,38526.0,38519.0,0.09972]
[1643729127760,0.2354167,38526.0,38520.0,0.209105]
[1643729128605,0.2354167,38526.0,38519.0,0.209111]
[1643729128807,0.2354167,38526.0,38516.0,0.1]
[1643729129008,0.2354167,38526.0,38511.0,0.23743418]
[1643729129009,0.3003407,38526.0,38515.0,0.1]
[1643729129210,0.064924,38526.0,38516.0,0.209132]
[1643729129405,0.064924,38526.0,38517.0,0.22252351]
[1643729129606,0.12938742,38520.0,38515.0,0.64522294]
[1643729129913,0.12938742,38520.0,38510.0,1.5448]
[1643729130113,0.19432242,38520.0,38510.0,1.5448]
[1643729130306,0.052,38519.0,38517.0,0.02181089]
[1643729130706,0.2961924,38519.0,38517.0,0.02181089]
[1643729131107,0.2961924,38519.0,38511.0,0.23008528]
[1643729131313,0.2961924,38519.0,38510.0,1.5448]
[1643729131314,0.13236127,38512.0,38510.0,1.5448]
[1643729131509,0.13236127,38512.0,38511.0,0.209165]
[1643729131708,0.2961924,38519.0,38508.0,0.20919]
[1643729131909,0.2961924,38519.0,38510.0,0.22754732]
[1643729132159,0.2961924,38519.0,38511.0,0.209169]
[1643729132358,0.2961924,38519.0,38510.0,0.22754732]
[1643729132761,0.2961924,38519.0,38513.0,0.00132121]
[1643729133160,0.12889032,38514.0,38513.0,0.00132121]
[1643729133361,0.129858,38526.0,38513.0,0.21047721]
[1643729133362,0.052,38524.0,38513.0,0.21047721]
[1643729133561,0.052,38524.0,38513.0,0.00132121]
[1643729133760,0.052,38524.0,38510.0,0.25554124]
[1643729133961,0.102,38524.0,38517.0,0.00132109]
[1643729134161,0.097,38524.0,38517.0,0.00132109]
[1643729134363,0.14449877,38519.0,38517.0,0.00132109]
[1643729134562,0.14449877,38519.0,38518.0,0.209123]
[1643729135165,0.14449877,38519.0,38517.0,0.00131448]
[1643729135363,0.064921,38527.0,38518.0,0.209124]
[1643729135667,0.00149319,38528.0,38519.0,0.24168759]
[1643729135903,0.00149319,38528.0,38520.0,0.209106]
[1643729136104,0.002,38532.0,38514.0,0.42591976]
[1643729136305,0.002,38532.0,38521.0,0.00131433]
[1643729136306,0.15215198,38528.0,38521.0,0.00131433]
[1643729136505,0.22441043,38526.0,38521.0,0.00131433]
[1643729136907,0.37641043,38526.0,38521.0,0.00131433]
[1643729137109,0.349763,38525.0,38521.0,0.00131433]
[1643729137306,0.349763,38525.0,38513.0,0.47598528]
[1643729137307,0.052,38524.0,38513.0,0.47598528]
[1643729137505,0.052,38524.0,38521.0,0.00131433]
[1643729137809,0.13592839,38522.0,38521.0,0.00131433]
[1643729138007,0.18792839,38522.0,38521.0,0.00131433]
[1643729138208,0.23792839,38522.0,38521.0,0.00131433]
[1643729138608,0.58792839,38522.0,38513.0,0.47598528]
[1643729138808,0.58792839,38522.0,38520.0,0.00132098]
[1643729138809,0.63792839,38522.0,38520.0,0.00132098]
[1643729139009,0.849763,38521.0,38520.0,0.00132098]
[1643729139208,0.901763,38521.0,38520.0,0.00132098]
[1643729139409,0.13819295,38513.0,38509.0,0.23008528]
[1643729139656,0.13761295,38513.0,38507.0,0.23008528]
[1643729139861,0.2450011,38514.0,38505.0,0.6]
[1643729140162,0.2450011,38514.0,38505.0,0.5]
[1643729140163,0.052,38513.0,38505.0,0.5]
[1643729140460,0.052,38513.0,38506.0,0.02103611]
[1643729140657,0.052,38513.0,38500.0,1.5151]
[1643729140859,0.052,38513.0,38501.0,0.1023389]
[1643729141056,0.052,38513.0,38504.0,0.22281621]
[1643729142157,0.13170134,38510.0,38504.0,0.22281621]
[1643729142357,0.13170134,38510.0,38507.0,0.00065741]
[1643729143406,0.13145798,38510.0,38504.0,0.24197541]
[1643729143606,0.13145798,38510.0,38507.0,0.00131482]
[1643729143607,0.18145798,38510.0,38507.0,0.00131482]
[1643729143809,0.27719921,38508.0,38507.0,0.00131482]
[1643729144006,0.32919921,38508.0,38507.0,0.00131482]
[1643729144208,0.37919921,38508.0,38507.0,0.00131482]
[1643729144505,0.37919921,38508.0,38504.0,0.0191592]
[1643729144706,0.37919921,38508.0,38506.0,0.00131486]
[1643729144906,0.349763,38507.0,38506.0,0.00131486]
[1643729145107,0.052,38507.0,38506.0,0.00131486]
[1643729145708,0.052,38507.0,38504.0,0.0191592]
[1643729145910,0.052,38507.0,38505.0,0.00131489]
[1643729146108,1.1283975,38506.0,38505.0,0.00131489]
[1643729146308,1.2303975,38506.0,38505.0,0.00131489]
[1643729146609,0.451763,38506.0,38505.0,0.00131489]
[1643729146810,0.401763,38506.0,38505.0,0.00131489]
[1643729147049,0.466722,38506.0,38498.0,0.7236]
[1643729147253,0.116959,38506.0,38504.0,0.00131492]
[1643729147451,0.1364314,38505.0,38504.0,0.00131492]
[1643729147650,0.1884314,38505.0,38504.0,0.00131492]
[1643729148155,0.1884314,38505.0,38498.0,0.7236]
[1643729148350,0.1884314,38505.0,38503.0,0.00131496]
[1643729149351,0.1884314,38505.0,38498.0,0.7236]
[1643729149553,0.1884314,38505.0,38502.0,0.00065749]
[1643729149752,0.1884314,38505.0,38498.0,0.71925749]
[1643729151701,0.25183681,38502.0,38498.0,0.71925749]
[1643729151902,0.1884314,38505.0,38496.0,0.45052192]
[1643729152107,0.1884314,38505.0,38496.0,0.51657292]
[1643729152301,0.2884314,38505.0,38496.0,0.51657292]
[1643729152501,0.2884314,38505.0,38498.0,0.02040033]
[1643729152706,0.2884314,38505.0,38496.0,0.43847608]
[1643729153502,0.2884314,38505.0,38496.0,0.37352508]
[1643729153703,0.3753697,38503.0,38496.0,0.37352508]
[1643729153903,0.4253697,38503.0,38496.0,0.37352508]
[1643729154103,0.13021092,38499.0,38496.0,0.07971093]
[1643729154405,0.18021092,38499.0,38498.0,0.00131184]
[1643729154864,0.28221092,38499.0,38498.0,0.00131184]
[1643729155263,0.23221092,38499.0,38498.0,0.00131184]
[1643729155464,0.28447444,38497.0,38496.0,0.0021]
[1643729155762,0.33647444,38497.0,38496.0,0.0021]
[1643729156161,0.052,38497.0,38496.0,0.0021]
[1643729156362,0.052,38497.0,38496.0,0.4021]
[1643729156760,0.052,38497.0,38496.0,0.0021]
[1643729157764,0.1568914,38497.0,38496.0,0.0021]
[1643729158164,0.052,38497.0,38496.0,0.0021]
[1643729158807,0.06495835,38506.0,38496.0,0.0021]
[1643729159008,0.229923,38510.0,38496.0,0.23218528]
[1643729159009,0.1,38510.0,38496.0,0.23218528]
[1643729159206,0.00019459,38517.0,38496.0,0.23218528]
[1643729159207,0.08350409,38508.0,38496.0,0.08925824]
[1643729159605,0.08350409,38508.0,38496.0,0.0021]
[1643729159806,0.40523073,38505.0,38496.0,0.0021]
[1643729160011,0.20126832,38505.0,38496.0,0.132]
[1643729160207,0.20126832,38505.0,38496.0,0.0021]
[1643729160408,0.20126832,38505.0,38499.0,0.00131181]
[1643729160409,0.052,38504.0,38499.0,0.00131181]
[1643729160605,0.09886809,38501.0,38499.0,0.00131181]
[1643729160805,0.14886809,38501.0,38499.0,0.00131181]
[1643729161007,0.05,38501.0,38499.0,0.2592149]
[1643729161208,0.47500381,38505.0,38499.0,0.2592149]
[1643729161408,0.47500381,38505.0,38499.0,0.25790309]
[1643729161606,0.15126832,38505.0,38499.0,0.25790309]
[1643729162077,0.15126832,38505.0,38498.0,0.00131182]
[1643729162276,0.080537,38504.0,38498.0,0.00131182]
[1643729162475,0.080537,38504.0,38498.0,0.0198153]
[1643729162676,0.080537,38504.0,38498.0,0.01850348]
[1643729162879,0.130537,38504.0,38499.0,0.00131179]
[1643729163278,0.130537,38504.0,38499.0,0.06626679]
[1643729163481,0.130537,38504.0,38499.0,0.00131179]
[1643729163881,0.130537,38504.0,38496.0,0.3321]
[1643729164078,0.130537,38504.0,38500.0,0.00131177]
[1643729165078,0.130537,38504.0,38497.0,0.064958]
[1643729165278,0.130537,38504.0,38500.0,0.00131176]
[1643729166109,0.230537,38504.0,38500.0,0.00131176]
[1643729166312,0.130537,38504.0,38496.0,0.3321]
[1643729166512,0.130537,38504.0,38500.0,0.00131176]
[1643729166711,0.349763,38503.0,38500.0,0.00131176]
[1643729166911,0.052,38502.0,38500.0,0.00131176]
[1643729167109,0.749763,38501.0,38500.0,0.00131176]
[1643729167310,0.851763,38501.0,38500.0,0.00131176]
[1643729167510,0.851763,38501.0,38496.0,0.3321]
[1643729167708,0.851763,38501.0,38499.0,0.00131181]
[1643729167917,0.851763,38501.0,38493.0,0.0011]
[1643729167918,0.25,38500.0,38493.0,0.0011]
[1643729168111,0.46674603,38499.0,38493.0,0.0011]
[1643729168313,0.1,38498.0,38493.0,0.0011]
[1643729168511,0.26854807,38496.0,38494.0,0.02059875]
[1643729168711,0.401763,38495.0,38493.0,0.0011]
[1643729169015,0.67917686,38495.0,38493.0,0.0011]
[1643729169213,0.1,38494.0,38493.0,0.0011]
[1643729169417,0.501763,38494.0,38493.0,0.0011]
[1643729169658,0.401763,38494.0,38493.0,0.0011]
[1643729170063,0.052,38494.0,38493.0,0.0011]
[1643729170259,0.052,38501.0,38493.0,0.0011]
[1643729170461,0.349763,38500.0,38493.0,0.066065]
[1643729170659,0.06496553,38499.0,38493.0,0.066065]
[1643729170859,0.349763,38498.0,38494.0,0.11719744]
[1643729171069,0.947,38511.0,38494.0,0.11719744]
[1643729171266,0.5,38505.0,38495.0,0.22945642]
[1643729171461,0.5,38505.0,38494.0,0.11850284]
[1643729171860,0.29411803,38501.0,38494.0,0.11850284]
[1643729172061,0.08161388,38495.0,38494.0,0.11850284]
[1643729172263,0.08161388,38495.0,38494.0,0.11719744]
[1643729172461,0.13161388,38495.0,38494.0,0.11719744]
[1643729173316,0.13161388,38495.0,38494.0,0.19480837]
[1643729173707,0.13161388,38495.0,38493.0,0.00240545]
[1643729173908,0.349763,38494.0,38493.0,0.00240545]
[1643729174706,0.46222871,38494.0,38493.0,0.0011]
[1643729175505,0.46222871,38494.0,38491.0,0.01969944]
[1643729175706,0.052,38495.0,38491.0,0.01969944]
[1643729176105,0.06496678,38496.0,38491.0,0.01969944]
[1643729176911,0.06496678,38496.0,38489.0,0.066072]
[1643729177159,0.13414873,38491.0,38489.0,0.066077]
[1643729177365,0.13414873,38491.0,38476.0,2.25395929]
[1643729177366,1.52360545,38490.0,38476.0,0.726]
[1643729177664,0.05,38486.0,38474.0,0.0011]
[1643729177863,0.1,38484.0,38471.0,0.0011]
[1643729178062,0.92356585,38483.0,38471.0,0.0011]
[1643729178259,0.95,38473.0,38466.0,0.0011]
[1643729178460,0.052,38472.0,38466.0,0.0011]
[1643729178659,0.05,38471.0,38466.0,0.0011]
[1643729178858,0.349763,38470.0,38466.0,0.0011]
[1643729179060,0.052,38469.0,38466.0,0.0011]
[1643729179260,0.399763,38468.0,38466.0,0.0011]
[1643729179462,0.052,38467.0,38457.0,0.0011]
[1643729179660,0.11396234,38462.0,38459.0,0.00202806]
[1643729179861,0.56372534,38462.0,38459.0,0.00202806]
[1643729180059,0.61572534,38462.0,38459.0,0.00202806]
[1643729180259,0.80968552,38462.0,38459.0,0.00202806]
[1643729180458,0.87472152,38462.0,38459.0,0.00202806]
[1643729180659,1.11069686,38462.0,38457.0,0.0011]
[1643729180911,0.71572534,38462.0,38460.0,0.00050701]
[1643729181109,0.71572534,38462.0,38461.0,0.51]
[1643729181110,0.451763,38462.0,38461.0,0.51]
[1643729181310,0.102,38462.0,38461.0,0.51]
[1643729181508,0.05,38462.0,38461.0,0.219528]
[1643729181707,0.05,38462.0,38461.0,0.01]
[1643729181909,0.11501738,38466.0,38461.0,0.01]
[1643729182113,0.08880567,38465.0,38461.0,0.01]
[1643729182309,0.349763,38464.0,38461.0,0.01]
[1643729182510,0.47982233,38464.0,38461.0,0.01]
[1643729182708,0.05,38463.0,38461.0,0.01]
[1643729182909,0.349763,38462.0,38461.0,0.01]
[1643729183511,0.11502819,38463.0,38461.0,0.01]
[1643729183709,0.15,38462.0,38461.0,0.01]
[1643729183910,0.499763,38462.0,38461.0,0.01]
[1643729184657,0.76367895,38462.0,38461.0,0.01]
[1643729184854,1.08604966,38462.0,38461.0,0.01]
[1643729185555,0.91534791,38462.0,38461.0,0.01]
[1643729185754,1.14887018,38462.0,38461.0,0.01]
[1643729185954,1.14887018,38462.0,38460.0,0.00107188]
[1643729185955,1.0,38461.0,38460.0,0.00107188]
[1643729186157,0.449763,38461.0,38460.0,0.00107188]
[1643729186355,0.84052101,38461.0,38460.0,0.00107188]
[1643729186655,0.84052101,38461.0,38457.0,0.0011]
[1643729186857,0.349763,38460.0,38459.0,0.00107191]
[1643729187056,0.66115115,38460.0,38459.0,0.00107191]
[1643729187259,0.80905115,38460.0,38459.0,0.00107191]
[1643729187656,0.547663,38460.0,38459.0,0.00043091]
[1643729187857,0.547663,38460.0,38457.0,0.0011]
[1643729187858,0.78253036,38460.0,38457.0,0.0011]
[1643729188057,0.21955042,38459.0,38458.0,0.00105892]
[1643729188319,0.61931342,38459.0,38458.0,0.00105892]
[1643729189113,0.61931342,38459.0,38457.0,0.0011]
[1643729189114,0.69488842,38459.0,38457.0,0.0011]
[1643729189315,0.349763,38458.0,38457.0,0.0011]
[1643729189713,0.24291653,38458.0,38457.0,0.0011]
[1643729190115,0.14291653,38458.0,38457.0,0.0011]
[1643729190318,0.11504181,38459.0,38457.0,0.0011]
[1643729190520,0.05,38459.0,38457.0,0.0011]
[1643729191515,0.14349972,38459.0,38457.0,0.0011]
[1643729191918,0.25853068,38459.0,38457.0,0.0011]
[1643729192162,0.349854,38458.0,38457.0,0.0011]
[1643729192361,0.449854,38458.0,38457.0,0.0011]
[1643729192566,0.21293096,38459.0,38457.0,0.0011]
[1643729192567,0.11503096,38459.0,38457.0,0.0011]
[1643729192763,0.05,38459.0,38457.0,0.0011]
[1643729193163,0.06502499,38463.0,38457.0,0.0011]
[1643729193363,0.349854,38462.0,38457.0,0.0011]
[1643729193563,0.27607856,38461.0,38457.0,0.066127]
[1643729193963,0.27607856,38461.0,38457.0,0.06742392]
[1643729194365,0.1,38462.0,38457.0,0.06742392]
[1643729194666,0.10345355,38461.0,38457.0,0.00239692]
[1643729194866,0.1300712,38460.0,38457.0,0.00239692]
[1643729195465,0.11503487,38461.0,38457.0,0.00239692]
[1643729195667,0.06503487,38461.0,38457.0,0.00239692]
[1643729195916,0.05,38460.0,38457.0,0.00239692]
[1643729196319,0.05,38460.0,38457.0,0.0011]
[1643729196515,0.05,38460.0,38457.0,0.00239694]
[1643729197620,0.22348279,38458.0,38457.0,0.00239694]
[1643729197921,0.27348279,38458.0,38457.0,0.00239694]
[1643729198716,0.07435242,38459.0,38457.0,0.0011]
[1643729199557,0.12435242,38459.0,38457.0,0.0011]
[1643729199957,0.07435242,38459.0,38457.0,0.0011]
[1643729201857,0.06503487,38461.0,38457.0,0.0011]
[1643729202060,0.06503487,38461.0,38460.0,0.11991844]
[1643729202061,0.11503487,38461.0,38460.0,0.11991844]
[1643729202460,0.06503487,38461.0,38457.0,0.00239692]
[1643729202663,0.05,38460.0,38457.0,0.00239692]
[1643729202861,0.06503487,38461.0,38457.0,0.00239692]
[1643729203321,0.05,38462.0,38457.0,0.00239692]
[1643729203514,0.05,38462.0,38458.0,0.12450836]
[1643729204015,0.16502197,38465.0,38458.0,0.12450836]
[1643729204216,0.06502197,38465.0,38458.0,0.18953036]
[1643729204715,0.11502197,38465.0,38458.0,0.18953036]
[1643729204916,0.28291058,38464.0,38458.0,0.18953036]
[1643729205217,0.28291058,38464.0,38457.0,0.00239692]
[1643729205218,0.16139577,38459.0,38457.0,0.00239692]
[1643729205418,0.349854,38458.0,38457.0,0.00239692]
[1643729205619,0.16139577,38459.0,38457.0,0.00239692]
[1643729206015,0.16139577,38459.0,38457.0,0.0011]
[1643729206216,0.06503461,38459.0,38457.0,0.0011]
[1643729206817,0.06503461,38459.0,38457.0,0.26072039]
[1643729207057,0.19509472,38468.0,38458.0,0.5773808]
[1643729207058,0.06501562,38464.0,38458.0,0.5773808]
[1643729207257,0.19509472,38468.0,38458.0,0.5773808]
[1643729207457,0.19509472,38468.0,38462.0,0.07729832]
[1643729207758,0.19509472,38468.0,38464.0,0.11964616]
[1643729208557,0.06501026,38466.0,38464.0,0.11964616]
[1643729209960,0.06501026,38466.0,38465.0,0.58354383]
[1643729210159,0.07834235,38472.0,38465.0,0.58354383]
[1643729210160,0.06500401,38471.0,38465.0,0.58354383]
[1643729210360,0.06500401,38471.0,38465.0,0.23368983]
[1643729210563,0.06489553,38471.0,38465.0,0.23368983]
[1643729211207,0.06489553,38471.0,38466.0,0.065004]
[1643729211806,0.10329171,38470.0,38466.0,0.065004]
[1643729212008,0.10329171,38470.0,38467.0,0.22569102]
[1643729212206,0.10329171,38470.0,38466.0,0.065004]
[1643729212607,0.10329171,38470.0,38466.0,0.06489632]
[1643729213211,0.06489553,38471.0,38467.0,0.22565324]
[1643729213413,0.06445753,38471.0,38467.0,0.22565324]
[1643729214011,0.06499664,38474.0,38469.0,0.129995]
[1643729214211,0.10384271,38472.0,38470.0,0.13093392]
[1643729214563,0.10384271,38472.0,38463.0,0.0479]
[1643729214762,0.10384271,38472.0,38465.0,0.02137056]
[1643729214962,0.10384271,38472.0,38465.0,0.065008]
[1643729215162,0.371147,38472.0,38465.0,0.065008]
[1643729215361,0.06500718,38471.0,38465.0,0.19784668]
[1643729215765,0.06500718,38471.0,38466.0,0.7122198]
[1643729215971,0.00693833,38486.0,38467.0,0.1]
[1643729216164,0.00693833,38486.0,38468.0,0.5271678]
[1643729216366,0.00693833,38486.0,38474.0,0.1]
[1643729216565,0.00693833,38486.0,38479.0,0.13518937]
[1643729216566,0.06498138,38483.0,38479.0,0.13518937]
[1643729216868,0.25704595,38486.0,38480.0,0.349748]
[1643729216869,0.001,38486.0,38480.0,0.349748]
[1643729217068,0.00693907,38487.0,38481.0,0.2323678]
[1643729217267,0.17556681,38497.0,38486.0,0.7]
[1643729217464,0.003,38498.0,38489.0,0.1]
[1643729217671,0.003,38498.0,38490.0,0.114121]
[1643729217864,0.29866858,38497.0,38496.0,0.12223389]
[1643729218064,0.39855983,38497.0,38496.0,0.12223389]
[1643729218318,0.09989125,38497.0,38496.0,0.12223389]
[1643729218512,0.09989125,38497.0,38493.0,0.129909]
[1643729218710,0.09989125,38497.0,38495.0,0.064955]
[1643729218912,0.09989125,38497.0,38493.0,0.129909]
[1643729219512,0.003,38498.0,38493.0,0.129909]
[1643729219513,0.003,38498.0,38496.0,0.28783671]
[1643729219711,0.003,38498.0,38497.0,0.066069]
[1643729219909,0.003,38498.0,38493.0,0.129909]
[1643729220112,0.003,38498.0,38494.0,0.349854]
[1643729220515,0.003,38498.0,38496.0,0.1400607]
[1643729220813,0.00383137,38498.0,38496.0,0.1400607]
[1643729221615,0.003,38498.0,38495.0,0.064954]
[1643729222461,0.28521693,38497.0,38495.0,0.064954]
[1643729222661,0.08176572,38497.0,38495.0,0.064954]
[1643729223462,0.10353709,38494.0,38493.0,0.01833843]
[1643729223666,0.08176572,38497.0,38493.0,0.01833843]
[1643729223667,0.31413352,38497.0,38493.0,0.01833843]
[1643729223862,0.05,38494.0,38493.0,0.01833843]
[1643729224062,0.6025917,38494.0,38493.0,0.01833843]
[1643729224260,0.449854,38494.0,38493.0,0.01833843]
[1643729224461,0.98052764,38494.0,38493.0,0.01833843]
[1643729225062,0.98052764,38494.0,38486.0,0.00066653]
[1643729225063,1.02842764,38494.0,38486.0,0.00066653]
[1643729225263,1.02842764,38494.0,38477.0,0.7821]
[1643729225264,0.16498872,38493.0,38477.0,0.7821]
[1643729225461,0.35699412,38492.0,38486.0,0.00133305]
[1643729225663,0.349854,38491.0,38486.0,0.00133305]
[1643729225921,0.12655351,38487.0,38486.0,0.00133305]
[1643729226518,0.06498554,38486.0,38480.0,0.064986]
[1643729226721,0.06498554,38486.0,38485.0,0.00133311]
[1643729226921,0.41483954,38486.0,38485.0,0.00133311]
[1643729227322,0.16498554,38486.0,38485.0,0.00133311]
[1643729227722,0.06498554,38486.0,38480.0,0.064986]
[1643729227925,0.06498554,38486.0,38484.0,0.00133314]
[1643729228324,0.585997,38485.0,38484.0,0.00133314]
[1643729228722,0.236143,38485.0,38484.0,0.00133314]
[1643729228927,0.236143,38485.0,38480.0,0.064986]
[1643729228928,0.06498554,38486.0,38480.0,0.064986]
[1643729229124,0.06498554,38486.0,38483.0,0.00133318]
[1643729230057,0.06498554,38486.0,38480.0,0.064986]
[1643729230259,0.06498554,38486.0,38483.0,0.00133318]
[1643729231259,0.06498554,38486.0,38480.0,0.064986]
[1643729231465,0.06498554,38486.0,38483.0,0.00133318]
[1643729231858,0.06498554,38486.0,38483.0,0.00127318]
[1643729232460,0.06498554,38486.0,38478.0,0.02146277]
[1643729232859,0.26861565,38482.0,38478.0,0.02146277]
[1643729233064,0.23560836,38481.0,38478.0,0.02146277]
[1643729233335,0.28350836,38481.0,38478.0,0.0417243]
[1643729233526,0.349854,38480.0,38469.0,0.7969]
[1643729233725,0.51342535,38479.0,38469.0,0.7969]
[1643729233924,0.21619537,38471.0,38469.0,0.7969]
[1643729234128,0.07911263,38470.0,38469.0,0.7969]
[1643729234823,0.07911263,38470.0,38465.0,0.06501]
[1643729235524,0.07911263,38470.0,38463.0,0.270965]
[1643729235827,0.07911263,38470.0,38460.0,0.130028]
[1643729235828,0.0479,38469.0,38460.0,0.130028]
[1643729236026,0.0479,38469.0,38457.0,0.0021]
[1643729236027,0.06502576,38467.0,38457.0,0.0021]
[1643729236229,0.13006378,38465.0,38457.0,0.0021]
[1643729236426,0.32066295,38464.0,38459.0,0.0053348]
[1643729236631,0.13584512,38460.0,38459.0,0.0053348]
[1643729236826,0.61907052,38460.0,38459.0,0.0053348]
[1643729237266,0.6332854,38460.0,38457.0,0.0021]
[1643729237461,0.6332854,38460.0,38458.0,0.00133374]
[1643729237462,0.449854,38459.0,38458.0,0.00133374]
[1643729238463,0.449854,38459.0,38457.0,0.0021]
[1643729238666,0.449854,38459.0,38457.0,0.00343378]
[1643729239065,0.1,38459.0,38457.0,0.00343378]
[1643729239367,0.1834314,38460.0,38457.0,0.00343378]
[1643729239564,0.349854,38459.0,38457.0,0.00343378]
[1643729239765,0.4979,38458.0,38457.0,0.0021]
[1643729239964,0.497754,38458.0,38457.0,0.00343378]
[1643729240168,0.547754,38458.0,38457.0,0.00343378]
[1643729240915,0.547754,38458.0,38457.0,0.0021]
[1643729242115,0.0479,38458.0,38457.0,0.0021]
[1643729242315,0.46392672,38469.0,38457.0,0.0021]
[1643729242316,0.06501646,38464.0,38457.0,0.351954]
[1643729242515,0.06501646,38464.0,38457.0,0.067117]
[1643729243115,0.08592616,38463.0,38458.0,0.24714053]
[1643729243317,0.08592616,38463.0,38457.0,0.117117]
[1643729243517,0.08592616,38463.0,38459.0,0.00133371]
[1643729244216,0.05,38462.0,38459.0,0.00133371]
[1643729244421,0.21350561,38460.0,38459.0,0.00133371]
[1643729244672,0.11503253,38460.0,38459.0,0.00133371]
[1643729244870,0.06503253,38460.0,38459.0,0.00133371]
[1643729245068,0.11503253,38460.0,38459.0,0.00133371]
[1643729245471,0.24110447,38460.0,38459.0,0.00133371]
[1643729245769,0.19110447,38460.0,38457.0,0.117117]
[1643729245971,0.19110447,38460.0,38458.0,0.00133374]
[1643729246371,0.28944347,38459.0,38458.0,0.00133374]
[1643729246570,0.28938347,38459.0,38458.0,0.00133374]
[1643729246973,0.34110447,38460.0,38457.0,0.0521]
[1643729246974,0.06503253,38460.0,38457.0,0.0521]
[1643729247172,0.06503253,38460.0,38457.0,0.11846078]
[1643729247374,0.11503253,38460.0,38457.0,0.11846078]
[1643729247871,0.11503253,38460.0,38457.0,0.11796078]
[1643729248071,0.23200766,38459.0,38457.0,0.116627]
[1643729248352,0.23200766,38459.0,38456.0,0.0011]
[1643729248353,0.4,38457.0,38456.0,0.0011]
[1643729248528,0.349854,38457.0,38456.0,0.0011]
[1643729248726,0.449854,38457.0,38456.0,0.0011]
[1643729249129,0.449854,38457.0,38455.0,0.19612971]
[1643729249427,0.449854,38456.0,38455.0,0.19612971]
[1643729249729,0.549854,38456.0,38455.0,0.19746356]
[1643729250225,0.64738339,38456.0,38455.0,0.19746356]
[1643729250426,0.49738339,38456.0,38455.0,0.19746356]
[1643729250628,0.64738339,38456.0,38455.0,0.19612971]
[1643729251525,0.64738339,38456.0,38455.0,0.17753211]
[1643729251727,0.59738339,38456.0,38455.0,0.17753211]
[1643729252163,0.49738339,38456.0,38455.0,0.17753211]
[1643729252369,0.14752939,38456.0,38455.0,0.17753211]
[1643729253567,0.49738339,38456.0,38455.0,0.17753211]
[1643729253868,0.59738339,38456.0,38455.0,0.17753211]
[1643729254069,0.49738339,38456.0,38455.0,0.17753211]
[1643729255067,0.05,38456.0,38455.0,0.17753211]
[1643729255271,0.05,38456.0,38455.0,0.52738611]
[1643729255467,0.0650243,38460.0,38455.0,0.17753211]
[1643729256117,0.08980178,38459.0,38455.0,0.17753211]
[1643729256614,0.13980178,38459.0,38455.0,0.17753211]
[1643729256816,0.28489972,38459.0,38455.0,0.17886594]
[1643729257216,0.05,38458.0,38455.0,0.17886594]
[1643729257418,0.15483441,38459.0,38455.0,0.17886594]
[1643729257615,0.20483441,38459.0,38455.0,0.17886594]
[1643729257816,0.15483441,38459.0,38455.0,0.17753211]
[1643729258016,0.15483441,38459.0,38455.0,0.17886594]
[1643729259017,0.15483441,38459.0,38455.0,0.17753211]
[1643729259217,0.15483441,38459.0,38455.0,0.1785725]
[1643729259416,0.21986556,38459.0,38455.0,0.1785725]
[1643729259665,0.15483293,38459.0,38455.0,0.1785725]
[1643729260069,0.15414297,38459.0,38455.0,0.1785725]